Workbook

Sheet Sheet1
B1: Second Fundamental Theorem
B3: This DIGMath graphing utility illustrates the
B4: Second Fundamental Theorem of Calculus
B6: applied to any desired function
D7: y = f(x)
B8: on any interval from x = a to x = b.
A10: Enter the function in terms of x: f(x) = | F10: x^3+5
A13: Now enter the interval for x:
C14: xMin = | D14: 0 | J14: ="The area swept out under the curve from x = "&TEXT(xMin,0) -> The area swept out under the curve from x = 0
C15: xMax = | D15: 2 | K15: ="to x = "&TEXT(J17,"0.00") &" is about A = " &TEXT(A, "0.0000") -> to x = 1.38 is about A = 7.8303
J17: =xMin+Sheet2!B12*n -> 1.38 | K17: 139
A22: Click each item below for suggestions and investigations
B23: Item 1
B24: Item 2
B25: Item 3
A29: To access/download all the DIGMath Apps for Calculus
A30: Click this link: | C30: DIGMath for Calculus
A32: Created by: Sheldon P. Gordon
A33: Farmingdale State College
A34: Development of this module was supported by the
A35: NSF's Division of Undergraduate Education
A36: under grants DUE-0310123 and DUE-0442160.

Sheet Sheet2
C1: x | D1: y = f(x) | E1: Area | F1: plotting points | I1: n = | J1: =n -> 139
D2: =Sheet1!#REF! ->  | F2: =C3 -> 0 | G2: =0 -> 0 | I2: x = | J2: =Sheet1!J17 -> 1.38
C3: =Sheet1!D14 -> 0 | D3: =x^3+5 -> 5 | E3: 0 | F3: =F2 -> 0 | G3: =0.9*D3 -> 4.5 | I3: A = | J3: =LOOKUP(xx,C3:C204,E3:E204) -> 7.830288785
C4: =C3+Sheet2!B$12 -> 0.009950248756 | D4: 5.000000985 | E4: =E3+dx*(D3+D4)/2 -> 0.04975124868 | F4: =F3 -> 0 | G4: =G3 -> 4.5
C5: =C4+Sheet2!B$12 -> 0.01990049751 | D5: 5.000007881 | E5: 0.09950253657 | F5: =F4 -> 0 | G5: =0 -> 0 | I5: =xx -> 1.383084577 | J5: =0 -> 0
C6: =C5+Sheet2!B$12 -> 0.02985074627 | D6: 5.000026599 | E6: 0.1492539519 | F6: =IF(C4<xx,C5,C$3) -> 0.01990049751 | G6: =0 -> 0 | I6: =xx -> 1.383084577 | J6: =A -> 7.830288785
C7: =C6+Sheet2!B$12 -> 0.03980099502 | D7: 5.00006305 | E7: 0.1990056417 | F7: =F6 -> 0.01990049751 | G7: =IF(F7<xx,0.91*D4,0) -> 4.550000896
C8: =C7+Sheet2!B$12 -> 0.04975124378 | D8: 5.000123144 | E8: 0.2487578118 | F8: =F7+dx -> 0.02985074627 | G8: =IF(F7<xx,0.91*D5,0) -> 4.550007172
C9: =C8+Sheet2!B$12 -> 0.05970149254 | D9: 5.000212792 | E9: 0.2985107269 | F9: =IF(C5<xx,C6,C$3) -> 0.02985074627 | G9: =0 -> 0
C10: =C9+Sheet2!B$12 -> 0.06965174129 | D10: 5.000337906 | E10: 0.3482647105 | F10: =F9 -> 0.02985074627 | G10: =IF(F10<xx,0.91*D5,0) -> 4.550007172
C11: =C10+Sheet2!B$12 -> 0.07960199005 | D11: 5.000504396 | E11: 0.3980201448 | F11: =F10+dx -> 0.03980099502 | G11: =IF(F10<xx,0.91*D6,0) -> 4.550024205
A12: delta x = | B12: =(Sheet1!D15-Sheet1!D14)/201 -> 0.009950248756 | C12: =C11+Sheet2!B$12 -> 0.08955223881 | D12: 5.000718173 | E12: 0.447777471 | F12: =IF(C6<xx,C7,C$3) -> 0.03980099502 | G12: =0 -> 0
C13: =C12+Sheet2!B$12 -> 0.09950248756 | D13: 5.000985149 | E13: 0.4975371891 | F13: =F12 -> 0.03980099502 | G13: =IF(F13<xx,0.91*D6,0) -> 4.550024205
C14: =C13+Sheet2!B$12 -> 0.1094527363 | D14: 5.001311233 | E14: 0.5472998576 | F14: =F13+dx -> 0.04975124378 | G14: =IF(F13<xx,0.91*D7,0) -> 4.550057375
C15: =C14+Sheet2!B$12 -> 0.1194029851 | D15: 5.001702337 | E15: 0.5970660943 | F15: =IF(C7<xx,C8,C$3) -> 0.04975124378 | G15: =0 -> 0
C16: =C15+Sheet2!B$12 -> 0.1293532338 | D16: 5.002164372 | E16: 0.6468365754 | F16: =F15 -> 0.04975124378 | G16: =IF(F16<xx,0.91*D7,0) -> 4.550057375
C17: =C16+Sheet2!B$12 -> 0.1393034826 | D17: 5.002703248 | E17: 0.6966120362 | F17: =F16+dx -> 0.05970149254 | G17: =IF(F16<xx,0.91*D8,0) -> 4.550112061
C18: =C17+Sheet2!B$12 -> 0.1492537313 | D18: 5.003324877 | E18: 0.7463932707 | F18: =IF(C8<xx,C9,C$3) -> 0.05970149254 | G18: =0 -> 0
C19: =C18+Sheet2!B$12 -> 0.1592039801 | D19: 5.004035169 | E19: 0.7961811316 | F19: =F18 -> 0.05970149254 | G19: =IF(F19<xx,0.91*D8,0) -> 4.550112061
C20: =C19+Sheet2!B$12 -> 0.1691542289 | D20: 5.004840036 | E20: 0.8459765306 | F20: =F19+dx -> 0.06965174129 | G20: =IF(F19<xx,0.91*D9,0) -> 4.550193641
C21: =C20+Sheet2!B$12 -> 0.1791044776 | D21: 5.005745388 | E21: 0.8957804382 | F21: =IF(C9<xx,C10,C$3) -> 0.06965174129 | G21: =0 -> 0
C22: =C21+Sheet2!B$12 -> 0.1890547264 | D22: 5.006757135 | E22: 0.9455938836 | F22: =F21 -> 0.06965174129 | G22: =IF(F22<xx,0.91*D9,0) -> 4.550193641
C23: =C22+Sheet2!B$12 -> 0.1990049751 | D23: 5.00788119 | E23: 0.9954179549 | F23: =F22+dx -> 0.07960199005 | G23: =IF(F22<xx,0.91*D10,0) -> 4.550307494
C24: =C23+Sheet2!B$12 -> 0.2089552239 | D24: 5.009123463 | E24: 1.045253799 | F24: =IF(C10<xx,C11,C$3) -> 0.07960199005 | G24: =0 -> 0
C25: =C24+Sheet2!B$12 -> 0.2189054726 | D25: 5.010489864 | E25: 1.095102621 | F25: =F24 -> 0.07960199005 | G25: =IF(F25<xx,0.91*D10,0) -> 4.550307494
C26: =C25+Sheet2!B$12 -> 0.2288557214 | D26: 5.011986305 | E26: 1.144965687 | F26: =F25+dx -> 0.08955223881 | G26: =IF(F25<xx,0.91*D11,0) -> 4.550459001
C27: =C26+Sheet2!B$12 -> 0.2388059701 | D27: 5.013618696 | E27: 1.194844319 | F27: =IF(C11<xx,C12,C$3) -> 0.08955223881 | G27: =0 -> 0
C28: =C27+Sheet2!B$12 -> 0.2487562189 | D28: 5.015392949 | E28: 1.244739899 | F28: =F27 -> 0.08955223881 | G28: =IF(F28<xx,0.91*D11,0) -> 4.550459001
C29: =C28+Sheet2!B$12 -> 0.2587064677 | D29: 5.017314975 | E29: 1.294653869 | F29: =F28+dx -> 0.09950248756 | G29: =IF(F28<xx,0.91*D12,0) -> 4.550653538
C30: =C29+Sheet2!B$12 -> 0.2686567164 | D30: 5.019390683 | E30: 1.344587728 | F30: =IF(C12<xx,C13,C$3) -> 0.09950248756 | G30: =0 -> 0
C31: =C30+Sheet2!B$12 -> 0.2786069652 | D31: 5.021625986 | E31: 1.394543035 | F31: =F30 -> 0.09950248756 | G31: =IF(F31<xx,0.91*D12,0) -> 4.550653538
C32: =C31+Sheet2!B$12 -> 0.2885572139 | D32: 5.024026793 | E32: 1.444521407 | F32: =F31+dx -> 0.1094527363 | G32: =IF(F31<xx,0.91*D13,0) -> 4.550896485
C33: =C32+Sheet2!B$12 -> 0.2985074627 | D33: 5.026599017 | E33: 1.49452452 | F33: =IF(C13<xx,C14,C$3) -> 0.1094527363 | G33: =0 -> 0
C34: =C33+Sheet2!B$12 -> 0.3084577114 | D34: 5.029348567 | E34: 1.54455411 | F34: =F33 -> 0.1094527363 | G34: =IF(F34<xx,0.91*D13,0) -> 4.550896485
C35: =C34+Sheet2!B$12 -> 0.3184079602 | D35: 5.032281355 | E35: 1.59461197 | F35: =F34+dx -> 0.1194029851 | G35: =IF(F34<xx,0.91*D14,0) -> 4.551193222
C36: =C35+Sheet2!B$12 -> 0.328358209 | D36: 5.035403291 | E36: 1.644699954 | F36: =IF(C14<xx,C15,C$3) -> 0.1194029851 | G36: =0 -> 0
C37: =C36+Sheet2!B$12 -> 0.3383084577 | D37: 5.038720287 | E37: 1.694819972 | F37: =F36 -> 0.1194029851 | G37: =IF(F37<xx,0.91*D14,0) -> 4.551193222
C38: =C37+Sheet2!B$12 -> 0.3482587065 | D38: 5.042238253 | E38: 1.744973994 | F38: =F37+dx -> 0.1293532338 | G38: =IF(F37<xx,0.91*D15,0) -> 4.551549127
C39: =C38+Sheet2!B$12 -> 0.3582089552 | D39: 5.045963101 | E39: 1.795164051 | F39: =IF(C15<xx,C16,C$3) -> 0.1293532338 | G39: =0 -> 0
C40: =C39+Sheet2!B$12 -> 0.368159204 | D40: 5.04990074 | E40: 1.845392229 | F40: =F39 -> 0.1293532338 | G40: =IF(F40<xx,0.91*D15,0) -> 4.551549127
C41: =C40+Sheet2!B$12 -> 0.3781094527 | D41: 5.054057083 | E41: 1.895660676 | F41: =F40+dx -> 0.1393034826 | G41: =IF(F40<xx,0.91*D16,0) -> 4.551969578
C42: =C41+Sheet2!B$12 -> 0.3880597015 | D42: 5.058438039 | E42: 1.945971597 | F42: =IF(C16<xx,C17,C$3) -> 0.1393034826 | G42: =0 -> 0
C43: =C42+Sheet2!B$12 -> 0.3980099502 | D43: 5.063049521 | E43: 1.996327256 | F43: =F42 -> 0.1393034826 | G43: =IF(F43<xx,0.91*D16,0) -> 4.551969578
C44: =C43+Sheet2!B$12 -> 0.407960199 | D44: 5.067897438 | E44: 2.046729978 | F44: =F43+dx -> 0.1492537313 | G44: =IF(F43<xx,0.91*D17,0) -> 4.552459956
C45: =C44+Sheet2!B$12 -> 0.4179104478 | D45: 5.072987701 | E45: 2.097182142 | F45: =IF(C17<xx,C18,C$3) -> 0.1492537313 | G45: =0 -> 0
C46: =C45+Sheet2!B$12 -> 0.4278606965 | D46: 5.078326222 | E46: 2.147686192 | F46: =F45 -> 0.1492537313 | G46: =IF(F46<xx,0.91*D17,0) -> 4.552459956
C47: =C46+Sheet2!B$12 -> 0.4378109453 | D47: 5.083918912 | E47: 2.198244625 | F47: =F46+dx -> 0.1592039801 | G47: =IF(F46<xx,0.91*D18,0) -> 4.553025638
C48: =C47+Sheet2!B$12 -> 0.447761194 | D48: 5.089771681 | E48: 2.248860001 | F48: =IF(C18<xx,C19,C$3) -> 0.1592039801 | G48: =0 -> 0
C49: =C48+Sheet2!B$12 -> 0.4577114428 | D49: 5.09589044 | E49: 2.299534937 | F49: =F48 -> 0.1592039801 | G49: =IF(F49<xx,0.91*D18,0) -> 4.553025638
C50: =C49+Sheet2!B$12 -> 0.4676616915 | D50: 5.1022811 | E50: 2.350272109 | F50: =F49+dx -> 0.1691542289 | G50: =IF(F49<xx,0.91*D19,0) -> 4.553672004
C51: =C50+Sheet2!B$12 -> 0.4776119403 | D51: 5.108949572 | E51: 2.401074252 | F51: =IF(C19<xx,C20,C$3) -> 0.1691542289 | G51: =0 -> 0
C52: =C51+Sheet2!B$12 -> 0.4875621891 | D52: 5.115901766 | E52: 2.451944159 | F52: =F51 -> 0.1691542289 | G52: =IF(F52<xx,0.91*D19,0) -> 4.553672004
C53: =C52+Sheet2!B$12 -> 0.4975124378 | D53: 5.123143595 | E53: 2.502884683 | F53: =F52+dx -> 0.1791044776 | G53: =IF(F52<xx,0.91*D20,0) -> 4.554404433
C54: =C53+Sheet2!B$12 -> 0.5074626866 | D54: 5.130680968 | E54: 2.553898736 | F54: =IF(C20<xx,C21,C$3) -> 0.1791044776 | G54: =0 -> 0
C55: =C54+Sheet2!B$12 -> 0.5174129353 | D55: 5.138519797 | E55: 2.604989287 | F55: =F54 -> 0.1791044776 | G55: =IF(F55<xx,0.92*D20,0) -> 4.604452833
C56: =C55+Sheet2!B$12 -> 0.5273631841 | D56: 5.146665992 | E56: 2.656159365 | F56: =F55+dx -> 0.1890547264 | G56: =IF(F55<xx,0.92*D21,0) -> 4.605285757
C57: =C56+Sheet2!B$12 -> 0.5373134328 | D57: 5.155125464 | E57: 2.707412059 | F57: =IF(C21<xx,C22,C$3) -> 0.1890547264 | G57: =0 -> 0
C58: =C57+Sheet2!B$12 -> 0.5472636816 | D58: 5.163904125 | E58: 2.758750515 | F58: =F57 -> 0.1890547264 | G58: =IF(F58<xx,0.92*D21,0) -> 4.605285757
C59: =C58+Sheet2!B$12 -> 0.5572139303 | D59: 5.173007885 | E59: 2.810177938 | F59: =F58+dx -> 0.1990049751 | G59: =IF(F58<xx,0.92*D22,0) -> 4.606216565
C60: =C59+Sheet2!B$12 -> 0.5671641791 | D60: 5.182442654 | E60: 2.861697592 | F60: =IF(C22<xx,C23,C$3) -> 0.1990049751 | G60: =0 -> 0
C61: =C60+Sheet2!B$12 -> 0.5771144279 | D61: 5.192214345 | E61: 2.913312801 | F61: =F60 -> 0.1990049751 | G61: =IF(F61<xx,0.92*D22,0) -> 4.606216565
C62: =C61+Sheet2!B$12 -> 0.5870646766 | D62: 5.202328867 | E62: 2.965026946 | F62: =F61+dx -> 0.2089552239 | G62: =IF(F61<xx,0.92*D23,0) -> 4.607250695
C63: =C62+Sheet2!B$12 -> 0.5970149254 | D63: 5.212792132 | E63: 3.016843469 | F63: =IF(C23<xx,C24,C$3) -> 0.2089552239 | G63: =0 -> 0
C64: =C63+Sheet2!B$12 -> 0.6069651741 | D64: 5.223610051 | E64: 3.068765868 | F64: =F63 -> 0.2089552239 | G64: =IF(F64<xx,0.92*D23,0) -> 4.607250695
C65: =C64+Sheet2!B$12 -> 0.6169154229 | D65: 5.234788534 | E65: 3.120797701 | F65: =F64+dx -> 0.2189054726 | G65: =IF(F64<xx,0.92*D24,0) -> 4.608393586
C66: =C65+Sheet2!B$12 -> 0.6268656716 | D66: 5.246333492 | E66: 3.172942587 | F66: =IF(C24<xx,C25,C$3) -> 0.2189054726 | G66: =0 -> 0
C67: =C66+Sheet2!B$12 -> 0.6368159204 | D67: =x^3+5 -> 5.258250836 | E67: 3.225204201 | F67: =F66 -> 0.2189054726 | G67: =IF(F67<xx,0.92*D24,0) -> 4.608393586
C68: =C67+Sheet2!B$12 -> 0.6467661692 | D68: 5.270546478 | E68: =E67+dx*(D67+D68)/2 -> 3.277586277 | F68: =F67+dx -> 0.2288557214 | G68: =IF(F67<xx,0.92*D25,0) -> 4.609650675
C69: =C68+Sheet2!B$12 -> 0.6567164179 | D69: 5.283226328 | E69: 3.330092609 | F69: =IF(C25<xx,C26,C$3) -> 0.2288557214 | G69: =0 -> 0
C70: =C69+Sheet2!B$12 -> 0.6666666667 | D70: 5.296296296 | E70: 3.38272705 | F70: =F69 -> 0.2288557214 | G70: =IF(F70<xx,0.92*D25,0) -> 4.609650675
C71: =C70+Sheet2!B$12 -> 0.6766169154 | D71: 5.309762295 | E71: 3.435493511 | F71: =F70+dx -> 0.2388059701 | G71: =IF(F70<xx,0.92*D26,0) -> 4.611027401
C72: =C71+Sheet2!B$12 -> 0.6865671642 | D72: 5.323630234 | E72: 3.488395961 | F72: =IF(C26<xx,C27,C$3) -> 0.2388059701 | G72: =0 -> 0
C73: =C72+Sheet2!B$12 -> 0.6965174129 | D73: 5.337906024 | E73: 3.54143843 | F73: =F72 -> 0.2388059701 | G73: =IF(F73<xx,0.92*D26,0) -> 4.611027401
C74: =C73+Sheet2!B$12 -> 0.7064676617 | D74: 5.352595578 | E74: 3.594625005 | F74: =F73+dx -> 0.2487562189 | G74: =IF(F73<xx,0.92*D27,0) -> 4.612529201
C75: =C74+Sheet2!B$12 -> 0.7164179104 | D75: 5.367704804 | E75: 3.647959833 | F75: =IF(C27<xx,C28,C$3) -> 0.2487562189 | G75: =0 -> 0
C76: =C75+Sheet2!B$12 -> 0.7263681592 | D76: 5.383239615 | E76: 3.701447119 | F76: =F75 -> 0.2487562189 | G76: =IF(F76<xx,0.92*D27,0) -> 4.612529201
C77: =C76+Sheet2!B$12 -> 0.736318408 | D77: 5.399205921 | E77: 3.755091126 | F77: =F76+dx -> 0.2587064677 | G77: =IF(F76<xx,0.92*D28,0) -> 4.614161513
C78: =C77+Sheet2!B$12 -> 0.7462686567 | D78: 5.415609633 | E78: 3.808896179 | F78: =IF(C28<xx,C29,C$3) -> 0.2587064677 | G78: =0 -> 0
C79: =C78+Sheet2!B$12 -> 0.7562189055 | D79: 5.432456662 | E79: 3.862866658 | F79: =F78 -> 0.2587064677 | G79: =IF(F79<xx,0.92*D28,0) -> 4.614161513
C80: =C79+Sheet2!B$12 -> 0.7661691542 | D80: 5.449752919 | E80: 3.917007004 | F80: =F79+dx -> 0.2686567164 | G80: =IF(F79<xx,0.92*D29,0) -> 4.615929777
C81: =C80+Sheet2!B$12 -> 0.776119403 | D81: 5.467504314 | E81: 3.971321717 | F81: =IF(C29<xx,C30,C$3) -> 0.2686567164 | G81: =0 -> 0
C82: =C81+Sheet2!B$12 -> 0.7860696517 | D82: 5.485716759 | E82: 4.025815354 | F82: =F81 -> 0.2686567164 | G82: =IF(F82<xx,0.92*D29,0) -> 4.615929777
C83: =C82+Sheet2!B$12 -> 0.7960199005 | D83: 5.504396165 | E83: 4.080492533 | F83: =F82+dx -> 0.2786069652 | G83: =IF(F82<xx,0.92*D30,0) -> 4.617839428
C84: =C83+Sheet2!B$12 -> 0.8059701493 | D84: 5.523548442 | E84: 4.135357929 | F84: =IF(C30<xx,C31,C$3) -> 0.2786069652 | G84: =0 -> 0
C85: =C84+Sheet2!B$12 -> 0.815920398 | D85: 5.543179501 | E85: 4.190416277 | F85: =F84 -> 0.2786069652 | G85: =IF(F85<xx,0.92*D30,0) -> 4.617839428
C86: =C85+Sheet2!B$12 -> 0.8258706468 | D86: 5.563295254 | E86: 4.24567237 | F86: =F85+dx -> 0.2885572139 | G86: =IF(F85<xx,0.92*D31,0) -> 4.619895907
C87: =C86+Sheet2!B$12 -> 0.8358208955 | D87: 5.58390161 | E87: 4.301131061 | F87: =IF(C31<xx,C32,C$3) -> 0.2885572139 | G87: =0 -> 0
C88: =C87+Sheet2!B$12 -> 0.8457711443 | D88: 5.605004482 | E88: 4.35679726 | F88: =F87 -> 0.2885572139 | G88: =IF(F88<xx,0.92*D31,0) -> 4.619895907
C89: =C88+Sheet2!B$12 -> 0.855721393 | D89: 5.626609779 | E89: 4.412675938 | F89: =F88+dx -> 0.2985074627 | G89: =IF(F88<xx,0.92*D32,0) -> 4.62210465
C90: =C89+Sheet2!B$12 -> 0.8656716418 | D90: 5.648723413 | E90: 4.468772123 | F90: =IF(C32<xx,C33,C$3) -> 0.2985074627 | G90: =0 -> 0
C91: =C90+Sheet2!B$12 -> 0.8756218905 | D91: 5.671351295 | E91: 4.525090903 | F91: =F90 -> 0.2985074627 | G91: =IF(F91<xx,0.92*D32,0) -> 4.62210465
C92: =C91+Sheet2!B$12 -> 0.8855721393 | D92: 5.694499336 | E92: 4.581637423 | F92: =F91+dx -> 0.3084577114 | G92: =IF(F91<xx,0.92*D33,0) -> 4.624471095
C93: =C92+Sheet2!B$12 -> 0.8955223881 | D93: 5.718173446 | E93: 4.63841689 | F93: =IF(C33<xx,C34,C$3) -> 0.3084577114 | G93: =0 -> 0
C94: =C93+Sheet2!B$12 -> 0.9054726368 | D94: 5.742379536 | E94: 4.695434567 | F94: =F93 -> 0.3084577114 | G94: =IF(F94<xx,0.92*D33,0) -> 4.624471095
C95: =C94+Sheet2!B$12 -> 0.9154228856 | D95: 5.767123517 | E95: 4.752695776 | F95: =F94+dx -> 0.3184079602 | G95: =IF(F94<xx,0.92*D34,0) -> 4.627000681
C96: =C95+Sheet2!B$12 -> 0.9253731343 | D96: 5.792411301 | E96: 4.810205899 | F96: =IF(C34<xx,C35,C$3) -> 0.3184079602 | G96: =0 -> 0
C97: =C96+Sheet2!B$12 -> 0.9353233831 | D97: 5.818248797 | E97: 4.867970377 | F97: =F96 -> 0.3184079602 | G97: =IF(F97<xx,0.92*D34,0) -> 4.627000681
C98: =C97+Sheet2!B$12 -> 0.9452736318 | D98: 5.844641918 | E98: 4.925994709 | F98: =F97+dx -> 0.328358209 | G98: =IF(F97<xx,0.92*D35,0) -> 4.629698846
C99: =C98+Sheet2!B$12 -> 0.9552238806 | D99: 5.871596573 | E99: 4.984284453 | F99: =IF(C35<xx,C36,C$3) -> 0.328358209 | G99: =0 -> 0
C100: =C99+Sheet2!B$12 -> 0.9651741294 | D100: 5.899118674 | E100: 5.042845225 | F100: =F99 -> 0.328358209 | G100: =IF(F100<xx,0.92*D35,0) -> 4.629698846
C101: =C100+Sheet2!B$12 -> 0.9751243781 | D101: 5.927214131 | E101: 5.101682702 | F101: =F100+dx -> 0.3383084577 | G101: =IF(F100<xx,0.92*D36,0) -> 4.632571028
C102: =C101+Sheet2!B$12 -> 0.9850746269 | D102: 5.955888856 | E102: 5.160802617 | F102: =IF(C36<xx,C37,C$3) -> 0.3383084577 | G102: =0 -> 0
C103: =C102+Sheet2!B$12 -> 0.9950248756 | D103: 5.985148759 | E103: 5.220210765 | F103: =F102 -> 0.3383084577 | G103: =IF(F103<xx,0.92*D36,0) -> 4.632571028
C104: =C103+Sheet2!B$12 -> 1.004975124 | D104: 6.014999752 | E104: 5.279912996 | F104: =F103+dx -> 0.3482587065 | G104: =IF(F103<xx,0.92*D37,0) -> 4.635622664
C105: =C104+Sheet2!B$12 -> 1.014925373 | D105: 6.045447745 | E105: 5.339915222 | F105: =IF(C37<xx,C38,C$3) -> 0.3482587065 | G105: =0 -> 0
C106: =C105+Sheet2!B$12 -> 1.024875622 | D106: 6.076498648 | E106: 5.400223413 | F106: =F105 -> 0.3482587065 | G106: =IF(F106<xx,0.92*D37,0) -> 4.635622664
C107: =C106+Sheet2!B$12 -> 1.034825871 | D107: 6.108158374 | E107: 5.460843598 | F107: =F106+dx -> 0.3582089552 | G107: =IF(F106<xx,0.92*D38,0) -> 4.638859193
C108: =C107+Sheet2!B$12 -> 1.044776119 | D108: 6.140432832 | E108: 5.521781862 | F108: =IF(C38<xx,C39,C$3) -> 0.3582089552 | G108: =0 -> 0
C109: =C108+Sheet2!B$12 -> 1.054726368 | D109: 6.173327935 | E109: 5.583044354 | F109: =F108 -> 0.3582089552 | G109: =IF(F109<xx,0.92*D38,0) -> 4.638859193
C110: =C109+Sheet2!B$12 -> 1.064676617 | D110: 6.206849592 | E110: 5.644637277 | F110: =F109+dx -> 0.368159204 | G110: =IF(F109<xx,0.92*D39,0) -> 4.642286052
C111: =C110+Sheet2!B$12 -> 1.074626866 | D111: 6.241003714 | E111: 5.706566895 | F111: =IF(C39<xx,C40,C$3) -> 0.368159204 | G111: =0 -> 0
C112: =C111+Sheet2!B$12 -> 1.084577114 | D112: 6.275796213 | E112: 5.768839532 | F112: =F111 -> 0.368159204 | G112: =IF(F112<xx,0.92*D39,0) -> 4.642286052
C113: =C112+Sheet2!B$12 -> 1.094527363 | D113: 6.311232999 | E113: 5.831461568 | F113: =F112+dx -> 0.3781094527 | G113: =IF(F112<xx,0.92*D40,0) -> 4.645908681
C114: =C113+Sheet2!B$12 -> 1.104477612 | D114: 6.347319983 | E114: 5.894439443 | F114: =IF(C40<xx,C41,C$3) -> 0.3781094527 | G114: =0 -> 0
C115: =C114+Sheet2!B$12 -> 1.114427861 | D115: 6.384063076 | E115: 5.957779657 | F115: =F114 -> 0.3781094527 | G115: =IF(F115<xx,0.92*D40,0) -> 4.645908681
C116: =C115+Sheet2!B$12 -> 1.124378109 | D116: 6.421468189 | E116: 6.021488768 | F116: =F115+dx -> 0.3880597015 | G116: =IF(F115<xx,0.92*D41,0) -> 4.649732516
C117: =C116+Sheet2!B$12 -> 1.134328358 | D117: 6.459541233 | E117: 6.085573392 | F117: =IF(C41<xx,C42,C$3) -> 0.3880597015 | G117: =0 -> 0
C118: =C117+Sheet2!B$12 -> 1.144278607 | D118: 6.498288119 | E118: 6.150040205 | F118: =F117 -> 0.3880597015 | G118: =IF(F118<xx,0.92*D41,0) -> 4.649732516
C119: =C118+Sheet2!B$12 -> 1.154228856 | D119: 6.537714758 | E119: 6.21489594 | F119: =F118+dx -> 0.3980099502 | G119: =IF(F118<xx,0.92*D42,0) -> 4.653762996
C120: =C119+Sheet2!B$12 -> 1.164179104 | D120: 6.57782706 | E120: 6.280147392 | F120: =IF(C42<xx,C43,C$3) -> 0.3980099502 | G120: =0 -> 0
C121: =C120+Sheet2!B$12 -> 1.174129353 | D121: 6.618630936 | E121: 6.345801412 | F121: =F120 -> 0.3980099502 | G121: =IF(F121<xx,0.92*D42,0) -> 4.653762996
C122: =C121+Sheet2!B$12 -> 1.184079602 | D122: 6.660132298 | E122: 6.411864911 | F122: =F121+dx -> 0.407960199 | G122: =IF(F121<xx,0.92*D43,0) -> 4.658005559
C123: =C122+Sheet2!B$12 -> 1.194029851 | D123: 6.702337056 | E123: 6.478344858 | F123: =IF(C43<xx,C44,C$3) -> 0.407960199 | G123: =0 -> 0
C124: =C123+Sheet2!B$12 -> 1.2039801 | D124: 6.745251121 | E124: 6.545248282 | F124: =F123 -> 0.407960199 | G124: =IF(F124<xx,0.92*D43,0) -> 4.658005559
C125: =C124+Sheet2!B$12 -> 1.213930348 | D125: 6.788880404 | E125: 6.612582269 | F125: =F124+dx -> 0.4179104478 | G125: =IF(F124<xx,0.92*D44,0) -> 4.662465643
C126: =C125+Sheet2!B$12 -> 1.223880597 | D126: 6.833230816 | E126: 6.680353967 | F126: =IF(C44<xx,C45,C$3) -> 0.4179104478 | G126: =0 -> 0
C127: =C126+Sheet2!B$12 -> 1.233830846 | D127: 6.878308268 | E127: 6.748570579 | F127: =F126 -> 0.4179104478 | G127: =IF(F127<xx,0.92*D44,0) -> 4.662465643
C128: =C127+Sheet2!B$12 -> 1.243781095 | D128: 6.924118671 | E128: 6.81723937 | F128: =F127+dx -> 0.4278606965 | G128: =IF(F127<xx,0.92*D45,0) -> 4.667148685
C129: =C128+Sheet2!B$12 -> 1.253731343 | D129: 6.970667935 | E129: 6.886367662 | F129: =IF(C45<xx,C46,C$3) -> 0.4278606965 | G129: =0 -> 0
C130: =C129+Sheet2!B$12 -> 1.263681592 | D130: 7.017961971 | E130: 6.955962835 | F130: =F129 -> 0.4278606965 | G130: =IF(F130<xx,0.92*D45,0) -> 4.667148685
C131: =C130+Sheet2!B$12 -> 1.273631841 | D131: =x^3+5 -> 7.066006691 | E131: 7.026032331 | F131: =F130+dx -> 0.4378109453 | G131: =IF(F130<xx,0.92*D46,0) -> 4.672060125
C132: =C131+Sheet2!B$12 -> 1.28358209 | D132: 7.114808005 | E132: =E131+dx*(D131+D132)/2 -> 7.096583648 | F132: =IF(C46<xx,C47,C$3) -> 0.4378109453 | G132: =0 -> 0
C133: =C132+Sheet2!B$12 -> 1.293532338 | D133: 7.164371824 | E133: 7.167624344 | F133: =F132 -> 0.4378109453 | G133: =IF(F133<xx,0.92*D46,0) -> 4.672060125
C134: =C133+Sheet2!B$12 -> 1.303482587 | D134: 7.214704059 | E134: 7.239162035 | F134: =F133+dx -> 0.447761194 | G134: =IF(F133<xx,0.92*D47,0) -> 4.677205399
C135: =C134+Sheet2!B$12 -> 1.313432836 | D135: 7.265810622 | E135: 7.311204396 | F135: =IF(C47<xx,C48,C$3) -> 0.447761194 | G135: =0 -> 0
C136: =C135+Sheet2!B$12 -> 1.323383085 | D136: 7.317697422 | E136: 7.383759163 | F136: =F135 -> 0.447761194 | G136: =IF(F136<xx,0.92*D47,0) -> 4.677205399
C137: =C136+Sheet2!B$12 -> 1.333333333 | D137: 7.37037037 | E137: 7.456834127 | F137: =F136+dx -> 0.4577114428 | G137: =IF(F136<xx,0.92*D48,0) -> 4.682589946
C138: =C137+Sheet2!B$12 -> 1.343283582 | D138: 7.423835379 | E138: 7.53043714 | F138: =IF(C48<xx,C49,C$3) -> 0.4577114428 | G138: =0 -> 0
C139: =C138+Sheet2!B$12 -> 1.353233831 | D139: 7.478098357 | E139: 7.604576114 | F139: =F138 -> 0.4577114428 | G139: =IF(F139<xx,0.92*D48,0) -> 4.682589946
C140: =C139+Sheet2!B$12 -> 1.36318408 | D140: 7.533165218 | E140: 7.679259018 | F140: =F139+dx -> 0.4676616915 | G140: =IF(F139<xx,0.92*D49,0) -> 4.688219204
C141: =C140+Sheet2!B$12 -> 1.373134328 | D141: 7.58904187 | E141: 7.754493879 | F141: =IF(C49<xx,C50,C$3) -> 0.4676616915 | G141: =0 -> 0
C142: =C141+Sheet2!B$12 -> 1.383084577 | D142: 7.645734226 | E142: 7.830288785 | F142: =F141 -> 0.4676616915 | G142: =IF(F142<xx,0.92*D49,0) -> 4.688219204
C143: =C142+Sheet2!B$12 -> 1.393034826 | D143: 7.703248196 | E143: 7.906651881 | F143: =F142+dx -> 0.4776119403 | G143: =IF(F142<xx,0.92*D50,0) -> 4.694098612
C144: =C143+Sheet2!B$12 -> 1.402985075 | D144: 7.76158969 | E144: 7.983591373 | F144: =IF(C50<xx,C51,C$3) -> 0.4776119403 | G144: =0 -> 0
C145: =C144+Sheet2!B$12 -> 1.412935323 | D145: 7.820764621 | E145: 8.061115524 | F145: =F144 -> 0.4776119403 | G145: =IF(F145<xx,0.92*D50,0) -> 4.694098612
C146: =C145+Sheet2!B$12 -> 1.422885572 | D146: 7.880778898 | E146: 8.139232656 | F146: =F145+dx -> 0.4875621891 | G146: =IF(F145<xx,0.92*D51,0) -> 4.700233606
C147: =C146+Sheet2!B$12 -> 1.432835821 | D147: 7.941638433 | E147: 8.21795115 | F147: =IF(C51<xx,C52,C$3) -> 0.4875621891 | G147: =0 -> 0
C148: =C147+Sheet2!B$12 -> 1.44278607 | D148: 8.003349136 | E148: 8.297279447 | F148: =F147 -> 0.4875621891 | G148: =IF(F148<xx,0.92*D51,0) -> 4.700233606
C149: =C148+Sheet2!B$12 -> 1.452736318 | D149: 8.065916919 | E149: 8.377226044 | F149: =F148+dx -> 0.4975124378 | G149: =IF(F148<xx,0.92*D52,0) -> 4.706629625
C150: =C149+Sheet2!B$12 -> 1.462686567 | D150: 8.129347692 | E150: 8.4577995 | F150: =IF(C52<xx,C53,C$3) -> 0.4975124378 | G150: =0 -> 0
C151: =C150+Sheet2!B$12 -> 1.472636816 | D151: 8.193647367 | E151: 8.53900843 | F151: =F150 -> 0.4975124378 | G151: =IF(F151<xx,0.92*D52,0) -> 4.706629625
C152: =C151+Sheet2!B$12 -> 1.482587065 | D152: 8.258821853 | E152: 8.620861511 | F152: =F151+dx -> 0.5074626866 | G152: =IF(F151<xx,0.92*D53,0) -> 4.713292107
C153: =C152+Sheet2!B$12 -> 1.492537313 | D153: 8.324877063 | E153: 8.703367476 | F153: =IF(C53<xx,C54,C$3) -> 0.5074626866 | G153: =0 -> 0
C154: =C153+Sheet2!B$12 -> 1.502487562 | D154: 8.391818906 | E154: 8.786535117 | F154: =F153 -> 0.5074626866 | G154: =IF(F154<xx,0.92*D53,0) -> 4.713292107
C155: =C154+Sheet2!B$12 -> 1.512437811 | D155: 8.459653294 | E155: 8.870373288 | F155: =F154+dx -> 0.5174129353 | G155: =IF(F154<xx,0.92*D54,0) -> 4.720226491
C156: =C155+Sheet2!B$12 -> 1.52238806 | D156: 8.528386138 | E156: 8.954890897 | F156: =IF(C54<xx,C55,C$3) -> 0.5174129353 | G156: =0 -> 0
C157: =C156+Sheet2!B$12 -> 1.532338308 | D157: 8.598023348 | E157: 9.040096914 | F157: =F156 -> 0.5174129353 | G157: =IF(F157<xx,0.92*D54,0) -> 4.720226491
C158: =C157+Sheet2!B$12 -> 1.542288557 | D158: 8.668570836 | E158: 9.126000368 | F158: =F157+dx -> 0.5273631841 | G158: =IF(F157<xx,0.92*D55,0) -> 4.727438213
C159: =C158+Sheet2!B$12 -> 1.552238806 | D159: 8.740034512 | E159: 9.212610344 | F159: =IF(C55<xx,C56,C$3) -> 0.5273631841 | G159: =0 -> 0
C160: =C159+Sheet2!B$12 -> 1.562189055 | D160: 8.812420288 | E160: 9.29993599 | F160: =F159 -> 0.5273631841 | G160: =IF(F160<xx,0.92*D55,0) -> 4.727438213
C161: =C160+Sheet2!B$12 -> 1.572139303 | D161: 8.885734073 | E161: 9.387986509 | F161: =F160+dx -> 0.5373134328 | G161: =IF(F160<xx,0.92*D56,0) -> 4.734932712
C162: =C161+Sheet2!B$12 -> 1.582089552 | D162: 8.95998178 | E162: 9.476771165 | F162: =IF(C56<xx,C57,C$3) -> 0.5373134328 | G162: =0 -> 0
C163: =C162+Sheet2!B$12 -> 1.592039801 | D163: 9.035169318 | E163: 9.56629928 | F163: =F162 -> 0.5373134328 | G163: =IF(F163<xx,0.92*D56,0) -> 4.734932712
C164: =C163+Sheet2!B$12 -> 1.60199005 | D164: 9.111302599 | E164: 9.656580235 | F164: =F163+dx -> 0.5472636816 | G164: =IF(F163<xx,0.92*D57,0) -> 4.742715427
C165: =C164+Sheet2!B$12 -> 1.611940299 | D165: 9.188387534 | E165: 9.74762347 | F165: =IF(C57<xx,C58,C$3) -> 0.5472636816 | G165: =0 -> 0
C166: =C165+Sheet2!B$12 -> 1.621890547 | D166: 9.266430034 | E166: 9.839438482 | F166: =F165 -> 0.5472636816 | G166: =IF(F166<xx,0.92*D57,0) -> 4.742715427
C167: =C166+Sheet2!B$12 -> 1.631840796 | D167: 9.345436009 | E167: 9.932034831 | F167: =F166+dx -> 0.5572139303 | G167: =IF(F166<xx,0.92*D58,0) -> 4.750791795
C168: =C167+Sheet2!B$12 -> 1.641791045 | D168: 9.42541137 | E168: 10.02542213 | F168: =IF(C58<xx,C59,C$3) -> 0.5572139303 | G168: =0 -> 0
C169: =C168+Sheet2!B$12 -> 1.651741294 | D169: 9.506362029 | E169: 10.11961006 | F169: =F168 -> 0.5572139303 | G169: =IF(F169<xx,0.92*D58,0) -> 4.750791795
C170: =C169+Sheet2!B$12 -> 1.661691542 | D170: 9.588293896 | E170: 10.21460835 | F170: =F169+dx -> 0.5671641791 | G170: =IF(F169<xx,0.92*D59,0) -> 4.759167254
C171: =C170+Sheet2!B$12 -> 1.671641791 | D171: 9.671212882 | E171: 10.31042679 | F171: =IF(C59<xx,C60,C$3) -> 0.5671641791 | G171: =0 -> 0
C172: =C171+Sheet2!B$12 -> 1.68159204 | D172: 9.755124898 | E172: 10.40707524 | F172: =F171 -> 0.5671641791 | G172: =IF(F172<xx,0.92*D59,0) -> 4.759167254
C173: =C172+Sheet2!B$12 -> 1.691542289 | D173: 9.840035854 | E173: 10.5045636 | F173: =F172+dx -> 0.5771144279 | G173: =IF(F172<xx,0.92*D60,0) -> 4.767847242
C174: =C173+Sheet2!B$12 -> 1.701492537 | D174: 9.925951663 | E174: 10.60290184 | F174: =IF(C60<xx,C61,C$3) -> 0.5771144279 | G174: =0 -> 0
C175: =C174+Sheet2!B$12 -> 1.711442786 | D175: 10.01287823 | E175: 10.7021 | F175: =F174 -> 0.5771144279 | G175: =IF(F175<xx,0.92*D60,0) -> 4.767847242
C176: =C175+Sheet2!B$12 -> 1.721393035 | D176: 10.10082148 | E176: 10.80216816 | F176: =F175+dx -> 0.5870646766 | G176: =IF(F175<xx,0.92*D61,0) -> 4.776837197
C177: =C176+Sheet2!B$12 -> 1.731343284 | D177: 10.18978731 | E177: 10.90311646 | F177: =IF(C61<xx,C62,C$3) -> 0.5870646766 | G177: =0 -> 0
C178: =C177+Sheet2!B$12 -> 1.741293532 | D178: 10.27978163 | E178: 11.00495511 | F178: =F177 -> 0.5870646766 | G178: =IF(F178<xx,0.92*D61,0) -> 4.776837197
C179: =C178+Sheet2!B$12 -> 1.751243781 | D179: 10.37081036 | E179: 11.10769438 | F179: =F178+dx -> 0.5970149254 | G179: =IF(F178<xx,0.92*D62,0) -> 4.786142558
C180: =C179+Sheet2!B$12 -> 1.76119403 | D180: 10.46287941 | E180: 11.21134458 | F180: =IF(C62<xx,C63,C$3) -> 0.5970149254 | G180: =0 -> 0
C181: =C180+Sheet2!B$12 -> 1.771144279 | D181: 10.55599469 | E181: 11.31591609 | F181: =F180 -> 0.5970149254 | G181: =IF(F181<xx,0.92*D62,0) -> 4.786142558
C182: =C181+Sheet2!B$12 -> 1.781094527 | D182: 10.6501621 | E182: 11.42141936 | F182: =F181+dx -> 0.6069651741 | G182: =IF(F181<xx,0.92*D63,0) -> 4.795768761
C183: =C182+Sheet2!B$12 -> 1.791044776 | D183: 10.74538756 | E183: 11.52786488 | F183: =IF(C63<xx,C64,C$3) -> 0.6069651741 | G183: =0 -> 0
C184: =C183+Sheet2!B$12 -> 1.800995025 | D184: 10.84167699 | E184: 11.63526321 | F184: =F183 -> 0.6069651741 | G184: =IF(F184<xx,0.92*D63,0) -> 4.795768761
C185: =C184+Sheet2!B$12 -> 1.810945274 | D185: 10.93903629 | E185: 11.74362497 | F185: =F184+dx -> 0.6169154229 | G185: =IF(F184<xx,0.92*D64,0) -> 4.805721246
C186: =C185+Sheet2!B$12 -> 1.820895522 | D186: 11.03747136 | E186: 11.85296082 | F186: =IF(C64<xx,C65,C$3) -> 0.6169154229 | G186: =0 -> 0
C187: =C186+Sheet2!B$12 -> 1.830845771 | D187: 11.13698814 | E187: 11.96328152 | F187: =F186 -> 0.6169154229 | G187: =IF(F187<xx,0.92*D64,0) -> 4.805721246
C188: =C187+Sheet2!B$12 -> 1.84079602 | D188: 11.23759251 | E188: 12.07459784 | F188: =F187+dx -> 0.6268656716 | G188: =IF(F187<xx,0.92*D65,0) -> 4.816005451
C189: =C188+Sheet2!B$12 -> 1.850746269 | D189: 11.3392904 | E189: 12.18692064 | F189: =IF(C65<xx,C66,C$3) -> 0.6268656716 | G189: =0 -> 0
C190: =C189+Sheet2!B$12 -> 1.860696517 | D190: 11.44208772 | E190: 12.30026083 | F190: =F189 -> 0.6268656716 | G190: =IF(F190<xx,0.92*D65,0) -> 4.816005451
C191: =C190+Sheet2!B$12 -> 1.870646766 | D191: 11.54599038 | E191: 12.41462938 | F191: =F190+dx -> 0.6368159204 | G191: =IF(F190<xx,0.92*D66,0) -> 4.826626812
C192: =C191+Sheet2!B$12 -> 1.880597015 | D192: 11.65100428 | E192: 12.53003731 | F192: =IF(C66<xx,C67,C$3) -> 0.6368159204 | G192: =0 -> 0
C193: =C192+Sheet2!B$12 -> 1.890547264 | D193: 11.75713534 | E193: 12.64649572 | F193: =F192 -> 0.6368159204 | G193: =IF(F193<xx,0.92*D66,0) -> 4.826626812
C194: =C193+Sheet2!B$12 -> 1.900497512 | D194: 11.86438947 | E194: 12.76401574 | F194: =F193+dx -> 0.6467661692 | G194: =IF(F193<xx,0.92*D67,0) -> 4.837590769
C195: =C194+Sheet2!B$12 -> 1.910447761 | D195: =x^3+5 -> 11.97277258 | E195: 12.88260859 | F195: =IF(C67<xx,C68,C$3) -> 0.6467661692 | G195: =0 -> 0
C196: =C195+Sheet2!B$12 -> 1.92039801 | D196: 12.08229058 | E196: =E195+dx*(D195+D196)/2 -> 13.00228552 | F196: =F195 -> 0.6467661692 | G196: =IF(F196<xx,0.92*D67,0) -> 4.837590769
C197: =C196+Sheet2!B$12 -> 1.930348259 | D197: 12.19294939 | E197: 13.12305786 | F197: =F196+dx -> 0.6567164179 | G197: =IF(F196<xx,0.92*D68,0) -> 4.84890276
C198: =C197+Sheet2!B$12 -> 1.940298507 | D198: 12.30475491 | E198: 13.24493698 | F198: =IF(C68<xx,C69,C$3) -> 0.6567164179 | G198: =0 -> 0
C199: =C198+Sheet2!B$12 -> 1.950248756 | D199: 12.41771305 | E199: 13.36793434 | F199: =F198 -> 0.6567164179 | G199: =IF(F199<xx,0.92*D68,0) -> 4.84890276
C200: =C199+Sheet2!B$12 -> 1.960199005 | D200: 12.53182973 | E200: 13.49206141 | F200: =F199+dx -> 0.6666666667 | G200: =IF(F199<xx,0.92*D69,0) -> 4.860568221
... 402 more rows

Sheet Defining Function
A1: Defining a Function in Excel
A3: Computers have very specific rules you must follow when defining a function. If you don't, the program will either not work at all or will work incorrectly.
A5: 1. The Variable used should be the one named in the instruction, usually x, though sometimes y, t, Q (for an angle theta),
A6: or even x and y (for a function of two variables).
A8: 2. Order of Operations: There five arithmetic operations, addition (+), subtraction (-), multiplication (*), division (/), and exponentiation or power (^). When computers see any of these operation symbols, they perform the indicated steps in a very particular order. First, the power is done. Second, products and quotients of adjacent terms is done. Third, and last, sums and differences of adjacent terms are done. So, in 10*x^3 + 5*x – 7, say with x = 2, the first pass only calculates 2^3 and ignores the multiplications and the sums and differences to calculate 2^3 = 8. The second pass looks at 10*8 + 5*2 – 7 and only does the multiplications, so it produces 80 + 10 - 7. The third pass looks at the +’s and –‘s to produce 80 + 10 – 7 = 83.
A10: 3. Parentheses If you need an operation involving more than two adjacent terms, as in Ö4^3 + 6^2, the computer would take the square root of 4 to produce 2^3 + 6^2; it would then cube the 2 and square the 6 to produce 8 + 36; and finally it would add the 8 and the 36 to get 44. If you actually wanted the square root of the entire expression, you would need to use parentheses, as in Ö(4^3 + 6^2) to tell the computer to do all the operations inside the parentheses before taking the square root. Therefore, it would calculate (4^3 + 6^2) = 64 + 36 = 100 and then take the square root of Ö100 = 10.
A12: 4. Built-In Functions Computer programs have built-in functions for most common algebraic functions. In Excel, the square root function is denoted by SQRT(…), so SQRT(100) = 10. Alternatively, you could enter it as 100^.5 or 100^(1/2); notice that parentheses are needed to have the ½ done first. The common trig functions are SIN (…), COS (…), and TAN (…), where the arguments are automatically interpreted as being in radians, not degrees. The logarithm to the base 10 is represented by LOG (…) and the logarithm with the base e, known as the natural logarithm, is LN (…). The corresponding exponential function with base e is EXP (x). If x is the variable, then each of these would be SQRT (x), SIN (x), COS (x), TAN (x), LOG (x) (for log with base 10 ), LN (x) (for log with base e ), and EXP (x).

Sheet Sheet3
